fUSD/lending_fUSD_20240602
["ID","MTS","AMOUNT","RATE_DAILY","PERIOD"]
[328421214,1717371095511,-705.6,0.00032412,4]
[328421215,1717371095521,-517.48,0.00032412,4]
[328421216,1717371095530,-607.53,0.00032412,4]
[328421217,1717371095540,-500.0,0.00032412,4]
[328421218,1717371095549,-1255.03,0.00032412,4]
[328421219,1717371095561,-500.0,0.00032412,4]
[328421220,1717371095571,-574.85,0.00032412,4]
[328421221,1717371095580,-500.0,0.00032412,4]
[328421222,1717371095590,-500.0,0.00032412,4]
[328421223,1717371095599,-500.0,0.00032412,4]
[328421224,1717371095608,-500.0,0.00032412,4]
[328421225,1717371095618,-500.0,0.00032412,4]
[328421226,1717371095627,-500.0,0.00032412,4]
[328421227,1717371095636,-500.0,0.00032412,4]
[328421228,1717371095646,-570.33,0.00032412,4]
[328421229,1717371095656,-500.0,0.00032412,4]
[328421230,1717371095665,-551.69,0.00032412,4]
[328421231,1717371095680,-661.77,0.00032412,4]
[328421232,1717371095689,-500.0,0.00032412,4]
[328421233,1717371095700,-936.31,0.00032412,4]
[328421234,1717371095711,-522.4,0.00032412,4]
[328421235,1717371095722,-500.0,0.00032412,4]
[328421236,1717371095733,-500.0,0.00032412,4]
[328421237,1717371095745,-500.0,0.00032412,4]
[328421238,1717371095757,-1102.97,0.00032412,4]
[328421239,1717371095767,-831.18,0.00032412,4]
[328421240,1717371095778,-638.36,0.00032412,4]
[328421241,1717371095789,-820.06,0.00032412,4]
[328421242,1717371095799,-520.32,0.00032412,4]
[328421243,1717371095808,-1014.06,0.00032412,4]
[328421244,1717371095818,-500.0,0.00032412,4]
[328421245,1717371095827,-500.0,0.00032412,4]
[328421246,1717371095838,-567.86,0.00032412,4]
[328421247,1717371095847,-500.0,0.00032412,4]
[328421248,1717371095858,-592.44,0.00032412,4]
[328421249,1717371095868,-500.0,0.00032412,4]
[328421250,1717371095878,-500.0,0.00032412,4]
[328421251,1717371095887,-516.74,0.00032412,4]
[328421252,1717371095896,-720.42,0.00032412,4]
[328421253,1717371095906,-675.63,0.00032412,4]
[328421254,1717371095916,-1147.72,0.00032412,4]
[328421255,1717371095926,-523.0,0.00032412,4]
[328421256,1717371095935,-500.0,0.00032412,4]
[328421257,1717371095945,-715.6,0.00032412,4]
[328421258,1717371095954,-653.66,0.00032412,4]
[328421259,1717371095964,-871.38,0.00032412,4]
[328421260,1717371095973,-554.83,0.00032412,4]
[328421261,1717371095982,-684.32,0.00032412,4]
[328421262,1717371095992,-500.0,0.00032412,4]
[328421263,1717371096001,-654.04,0.00032412,4]
[328421264,1717371096010,-500.0,0.00032412,4]
[328421265,1717371096019,-697.57,0.00032412,4]
[328421266,1717371096029,-500.0,0.00032412,4]
[328421267,1717371096038,-500.0,0.00032412,4]
[328421268,1717371096047,-279.89097878,0.00032412,4]
[328421269,1717371096056,-789.05,0.00032412,4]
[328421270,1717371096066,-760.07,0.00032412,4]
[328421271,1717371096075,-500.0,0.00032412,4]
[328421272,1717371096084,-1212.31,0.00032412,4]
[328421273,1717371096094,-772.24,0.00032412,4]
[328421274,1717371096103,-500.0,0.00032412,4]
[328421275,1717371096112,-903.33,0.00032412,4]
[328421276,1717371096122,-1037.02,0.00032412,4]
[328421277,1717371096132,-904.38,0.00032412,4]
[328421278,1717371096141,-500.0,0.00032428,4]
[328421279,1717371096151,-500.0,0.00032428,4]
[328421280,1717371096160,-1001.15,0.00032428,4]
[328421281,1717371096170,-531.24,0.00032428,4]
[328421282,1717371096180,-500.0,0.00032428,4]
[328421283,1717371096190,-2925.21,0.00032428,4]
[328421284,1717371096199,-1385.52,0.00032428,4]
[328421285,1717371096208,-5956.43,0.00032428,4]
[328421286,1717371096217,-13746.73,0.00032428,4]
[328421287,1717371096227,-692.01,0.00032428,4]
[328421288,1717371096236,-2419.36,0.00032428,4]
[328421289,1717371096246,-12780.6,0.00032428,4]
[328421290,1717371096255,-737.12,0.00032428,4]
[328421291,1717371096264,-500.0,0.00032428,4]
[328421292,1717371096273,-500.0,0.00032428,4]
[328421293,1717371096282,-523.0442418,0.00032429,4]
[328421294,1717371096291,-500.0,0.00032429,4]
[328421295,1717371096300,-500.0,0.00032429,4]
[328421296,1717371096309,-500.0,0.00032429,4]
[328421297,1717371096319,-500.0,0.00032429,4]
[328421298,1717371096328,-500.0,0.00032429,4]
[328421299,1717371096337,-500.0,0.00032429,4]
[328421300,1717371096346,-500.0,0.00032429,4]
[328421301,1717371096355,-571.20319463,0.00032429,4]
[328421302,1717371096365,-500.0,0.00032429,4]
[328421303,1717371096374,-500.0,0.00032429,4]
[328421304,1717371096383,-500.0,0.00032429,4]
[328421305,1717371096392,-500.0,0.00032429,4]
[328421306,1717371096403,-976.87,0.00032429,4]
[328421307,1717371096412,-985.6,0.00032429,4]
[328421308,1717371096422,-500.0,0.00032429,4]
[328421309,1717371096431,-500.0,0.00032429,4]
[328421310,1717371096440,-250.0,0.00032429,4]
[328421311,1717371096451,-573.23,0.00032429,4]
[328421312,1717371096460,-500.0,0.00032429,4]
[328421313,1717371096469,-500.0,0.00032429,4]
[328421314,1717371096479,-500.0,0.00032429,2]
[328421315,1717371096488,-516.16,0.00032429,4]
[328421316,1717371096497,-500.0,0.00032429,4]
[328421317,1717371096506,-501.76,0.00032429,4]
[328421318,1717371096515,-500.0,0.00032429,4]
[328421319,1717371096525,-585.1,0.00032429,4]
[328421320,1717371096534,-525.90565398,0.00032429,4]
[328421321,1717371096543,-500.0,0.00032429,4]
[328421322,1717371096552,-500.0,0.00032429,4]
[328421323,1717371096562,-500.0,0.00032429,4]
[328421324,1717371096571,-500.0,0.00032429,4]
[328421325,1717371096580,-500.0,0.00032429,4]
[328421326,1717371096589,-500.0,0.00032429,4]
[328421327,1717371096598,-558.46118532,0.00032429,4]
[328421328,1717371096607,-500.0,0.00032429,4]
[328421329,1717371096616,-565.05,0.00032429,4]
[328421330,1717371096625,-500.0,0.00032429,4]
[328421331,1717371096634,-1084.19,0.00032429,4]
[328421332,1717371096643,-500.0,0.00032429,4]
[328421333,1717371096653,-599.22142,0.00032429,4]
[328421334,1717371096662,-500.0,0.00032429,4]
[328421335,1717371096672,-559.85,0.00032429,4]
[328421336,1717371096683,-686.33,0.00032429,4]
[328421337,1717371096694,-520.10675669,0.00032429,4]
[328421338,1717371096703,-500.0,0.00032429,4]
[328421339,1717371096712,-500.0,0.00032429,4]
[328421340,1717371096721,-500.0,0.00032429,4]
[328421341,1717371096732,-500.0,0.00032429,4]
[328421342,1717371096742,-594.62,0.00032429,4]
[328421343,1717371096751,-500.0,0.00032429,4]
[328421344,1717371096760,-500.0,0.00032429,4]
[328421345,1717371096770,-500.0,0.00032429,4]
[328421346,1717371096779,-500.0,0.00032429,4]
[328421347,1717371096851,-726.33,0.00032429,4]
[328421348,1717371096861,-500.0,0.00032429,4]
[328421349,1717371096870,-673.43,0.00032429,4]
[328421350,1717371096880,-500.0,0.00032429,4]
[328421351,1717371096889,-500.0,0.00032429,4]
[328421352,1717371096898,-537.73489308,0.00032429,4]
[328421353,1717371096907,-500.0,0.00032429,4]
[328421354,1717371096916,-500.0,0.00032429,4]
[328421355,1717371096926,-634.16,0.00032429,4]
[328421356,1717371096935,-500.0,0.00032429,4]
[328421357,1717371096945,-610.74,0.00032429,4]
[328421358,1717371096954,-500.0,0.00032429,4]
[328421359,1717371096963,-715.05,0.00032429,4]
[328421360,1717371096972,-500.0,0.00032429,4]
[328421361,1717371096982,-500.0,0.00032429,4]
[328421362,1717371096991,-500.0,0.00032429,4]
[328421363,1717371097000,-648.14,0.00032429,4]
[328421364,1717371097008,-500.0,0.00032429,4]
[328421365,1717371097018,-678.37,0.00032429,4]
[328421366,1717371097027,-500.0,0.00032429,4]
[328421367,1717371097036,-500.0,0.00032429,4]
[328421368,1717371097045,-580.49,0.00032429,4]
[328421369,1717371097055,-616.98,0.00032429,4]
[328421370,1717371097064,-500.0,0.00032429,4]
[328421371,1717371097073,-562.17,0.00032429,4]
[328421372,1717371097082,-641.58,0.00032429,4]
[328421373,1717371097091,-500.0,0.00032429,4]
[328421374,1717371097100,-804.64,0.00032429,2]
[328421375,1717371097109,-931.07,0.00032429,4]
[328421376,1717371097119,-500.0,0.00032429,4]
[328421377,1717371097127,-800.9,0.00032429,4]
[328421378,1717371097136,-1483.14,0.00032429,4]
[328421379,1717371097145,-966.28,0.00032429,4]
[328421380,1717371097154,-500.0,0.00032429,4]
[328421381,1717371097163,-152.28529997,0.00032429,4]
[328421382,1717371097173,-500.0,0.00032429,4]
[328421383,1717371097182,-500.0,0.00032429,4]
[328421384,1717371097191,-500.0,0.00032429,4]
[328421385,1717371097200,-500.0,0.00032429,4]
[328421386,1717371097209,-500.0,0.00032429,4]
[328421387,1717371097218,-1014.25,0.00032429,4]
[328421388,1717371097227,-500.0,0.00032429,4]
[328421389,1717371097236,-500.0,0.00032429,4]
[328421390,1717371097245,-500.0,0.00032429,4]
[328421391,1717371097255,-1282.94,0.00032429,4]
[328421392,1717371097264,-500.0,0.00032429,4]
[328421393,1717371097273,-816.22,0.00032429,4]
[328421394,1717371097283,-1358.74,0.00032429,4]
[328421395,1717371097294,-500.0,0.00032429,4]
[328421396,1717371097303,-673.28,0.00032429,4]
[328421397,1717371097313,-500.0,0.00032429,4]
[328421398,1717371097322,-704.95,0.00032429,4]
[328421399,1717371097331,-500.0,0.00032429,4]
[328421400,1717371097340,-500.0,0.00032429,4]
[328421401,1717371097350,-500.0,0.00032429,4]
[328421402,1717371097359,-602.09067925,0.00032429,4]
[328421403,1717371097368,-2030.46,0.00032429,4]
[328421404,1717371097378,-500.0,0.00032429,4]
[328421405,1717371097387,-500.0,0.00032429,4]
[328421406,1717371097397,-500.0,0.00032429,4]
[328421407,1717371097406,-500.0,0.00032429,4]
[328421408,1717371097415,-500.0,0.00032429,4]
[328421409,1717371097424,-518.04,0.00032429,4]
[328421410,1717371097433,-522.84491653,0.00032429,4]
[328421411,1717371097442,-503.27125527,0.00032429,4]
[328421412,1717371097451,-500.0,0.00032429,4]
[328421413,1717371097461,-500.0,0.00032429,4]
[328421414,1717371097470,-500.0,0.00032429,4]
[328421415,1717371097480,-500.0,0.00032429,4]
[328421416,1717371097489,-500.0,0.00032429,4]
[328421417,1717371097499,-500.0,0.00032429,4]
[328421418,1717371097508,-500.0,0.00032429,4]
[328421419,1717371097517,-520.28190303,0.00032429,4]
[328421420,1717371097526,-673.88,0.00032429,4]
[328421421,1717371097536,-500.0,0.00032429,4]
[328421422,1717371097545,-500.0,0.00032429,4]
[328421423,1717371097554,-1046.32,0.00032429,4]
[328421424,1717371097563,-500.0,0.00032429,4]
[328421425,1717371097574,-500.0,0.00032429,4]
[328421426,1717371097583,-1211.44,0.00032429,4]
[328421427,1717371097592,-500.0,0.00032429,4]
[328421428,1717371097601,-915.71,0.00032429,4]
[328421429,1717371097611,-672.72,0.00032429,4]
[328421430,1717371097621,-504.96,0.00032429,4]
[328421431,1717371097630,-1228.24,0.00032429,4]
[328421432,1717371097640,-2678.02,0.00032429,4]
[328421433,1717371097650,-515.87,0.00032429,4]
[328421434,1717371097660,-622.96,0.00032429,4]
[328421435,1717371097672,-893.79,0.00032429,4]
[328421436,1717371097683,-638.82,0.00032429,4]
[328421437,1717371097695,-1208.18,0.00032429,4]
[328421438,1717371097705,-500.0,0.00032429,4]
[328421439,1717371097717,-523.2,0.00032429,4]
[328421440,1717371097728,-1277.74,0.00032429,4]
[328421441,1717371097737,-167.0,0.00032439,2]
[328421442,1717371097748,-150.0,0.00032458,7]
[328421443,1717371097761,-3030.0,0.00032463,7]
[328421444,1717371097772,-500.0,0.00032463,4]
[328421445,1717371097782,-150.0,0.00032466,2]
[328421446,1717371097793,-150.0,0.00032466,2]
[328421447,1717371097804,-150.0,0.00032466,2]
[328421448,1717371097813,-150.0,0.00032466,2]
[328421449,1717371097823,-150.0,0.00032466,2]
[328421450,1717371097832,-358.44,0.00032466,2]
[328421451,1717371097842,-525.43,0.00032466,2]
[328421452,1717371097853,-525.43,0.00032466,2]
[328421453,1717371097863,-421.9,0.00032466,2]
[328421454,1717371097873,-150.0,0.00032466,2]
[328421455,1717371097883,-352.8,0.00032466,2]
[328421456,1717371097893,-150.0,0.00032466,2]
[328421457,1717371097903,-163.91,0.00032466,2]
[328421458,1717371097912,-421.9,0.00032466,2]
[328421459,1717371097921,-150.0,0.00032466,2]
[328421460,1717371097931,-150.0,0.00032466,2]
[328421461,1717371097940,-163.91,0.00032466,2]
[328421462,1717371097949,-352.8,0.00032466,2]
[328421463,1717371097959,-163.91,0.00032466,2]
[328421464,1717371097969,-150.0,0.00032466,2]
[328421465,1717371097978,-352.8,0.00032466,2]
[328421466,1717371097988,-421.9,0.00032466,2]
[328421467,1717371097998,-150.0,0.00032466,2]
[328421468,1717371098008,-163.91,0.00032466,2]
[328421469,1717371098017,-150.0,0.00032466,2]
[328421470,1717371098027,-352.8,0.00032466,2]
[328421471,1717371098038,-150.0,0.00032466,2]
[328421472,1717371098047,-421.9,0.00032466,2]
[328421473,1717371098056,-421.9,0.00032466,2]
[328421474,1717371098066,-150.0,0.00032466,2]
[328421475,1717371098076,-150.0,0.00032466,2]
[328421476,1717371098085,-352.8,0.00032466,2]
[328421477,1717371098095,-163.91,0.00032466,2]
[328421478,1717371098106,-300.0,0.00032466,2]
[328421479,1717371098116,-300.0,0.00032466,2]
[328421480,1717371098126,-162.59,0.00032466,2]
[328421481,1717371098138,-842.4,0.00032466,2]
[328421482,1717371098149,-352.8,0.00032466,2]
[328421483,1717371098158,-150.0,0.00032466,2]
[328421484,1717371098168,-352.8,0.00032466,2]
[328421485,1717371098178,-150.0,0.00032466,2]
[328421486,1717371098188,-421.9,0.00032466,2]
[328421487,1717371098198,-150.0,0.00032467,7]
[328421488,1717371098207,-500.0,0.0003248,2]
[328421489,1717371098216,-155.96669712,0.00032488,7]
[328421490,1717371098226,-150.0,0.00032496,7]
[328421491,1717371098236,-500.0,0.00032499,4]
[328421492,1717371098245,-500.0,0.00032499,4]
[328421493,1717371098255,-500.0,0.00032499,4]
[328421494,1717371098266,-694.92,0.00032499,4]
[328421495,1717371098276,-500.0,0.00032499,4]
[328421496,1717371098287,-500.0,0.00032499,4]
[328421497,1717371098299,-268.74,0.00032499,4]
[328421498,1717371098309,-798.44,0.00032499,4]
[328421499,1717371098318,-500.0,0.00032499,4]
[328421500,1717371098328,-613.86022966,0.00032499,4]
[328421501,1717371098338,-1024.48,0.00032499,4]
[328421502,1717371098349,-797.99,0.00032499,4]
[328421503,1717371098359,-763.86,0.00032499,4]
[328421504,1717371098369,-638.9,0.00032499,4]
[328421505,1717371098379,-1096.67,0.00032499,4]
[328421506,1717371098389,-1679.78,0.00032499,4]
[328421507,1717371098399,-409.57000123,0.00032499,4]
[328421508,1717371098409,-500.0,0.00032499,4]
[328421509,1717371098419,-500.0,0.00032499,4]
[328421510,1717371098429,-606.79,0.00032499,4]
[328421511,1717371098439,-537.93,0.00032499,4]
[328421512,1717371098449,-777.28,0.000325,4]
[328421513,1717371098459,-500.0,0.000325,4]
[328421514,1717371098470,-500.0,0.000325,4]
[328421515,1717371098480,-4734.28,0.000325,4]
[328421516,1717371098490,-500.0,0.000325,4]
[328421517,1717371098501,-500.0,0.000325,4]
[328421518,1717371098512,-936.92,0.000325,4]
[328421519,1717371098522,-5685.91,0.000325,4]
[328421520,1717371098532,-756.95,0.000325,4]
[328421521,1717371098542,-971.06,0.000325,4]
[328421522,1717371098551,-599.95,0.000325,4]
[328421523,1717371098561,-1028.0,0.000325,4]
[328421524,1717371098571,-572.72,0.000325,4]
[328421525,1717371098581,-641.03,0.000325,4]
[328421526,1717371098591,-1195.81,0.000325,4]
[328421527,1717371098602,-500.0,0.000325,4]
[328421528,1717371098611,-1051.95,0.000325,4]
[328421529,1717371098621,-598.95,0.000325,4]
[328421530,1717371098631,-965.74,0.000325,4]
[328421531,1717371098640,-995.94,0.000325,4]
[328421532,1717371098650,-626.65,0.000325,4]
[328421533,1717371098659,-500.0,0.000325,4]
[328421534,1717371098669,-844.41,0.000325,4]
[328421535,1717371098679,-640.54,0.000325,4]
[328421536,1717371098693,-1129.49,0.000325,4]
[328421537,1717371098703,-1440.55,0.000325,4]
[328421538,1717371098714,-3069.82,0.000325,4]
[328421539,1717371098723,-500.0,0.000325,4]
[328421540,1717371098733,-150.0,0.00032501,7]
[328421541,1717371098743,-500.0,0.00032501,4]
[328421542,1717371098752,-500.0,0.00032501,4]
[328421543,1717371098761,-500.0,0.00032501,4]
[328421544,1717371098770,-500.0,0.00032501,4]
[328421545,1717371098780,-881.16,0.00032501,4]
[328421546,1717371098790,-877.71,0.00032501,4]
[328421547,1717371098799,-500.0,0.00032501,4]
[328421548,1717371098809,-500.0,0.00032501,4]
[328421549,1717371098819,-500.0,0.00032501,4]
[328421550,1717371098828,-640.4,0.00032501,4]
[328421551,1717371098838,-640.75,0.00032501,4]
[328421552,1717371098848,-500.0,0.00032501,4]
[328421553,1717371098857,-500.0,0.00032501,4]
[328421554,1717371098866,-500.0,0.00032501,4]
[328421555,1717371098877,-500.0,0.00032501,4]
[328421556,1717371098886,-500.0,0.00032501,4]
[328421557,1717371098895,-584.71,0.00032501,4]
[328421558,1717371098905,-540.15,0.00032501,4]
[328421559,1717371098914,-500.0,0.00032501,4]
[328421560,1717371098924,-500.0,0.00032501,4]
[328421561,1717371098934,-336.34623125,0.00032501,4]
[328421562,1717371098943,-500.0,0.00032501,4]
[328421563,1717371098953,-500.0,0.00032501,4]
[328421564,1717371098962,-500.0,0.00032501,4]
[328421565,1717371098972,-725.51,0.00032501,4]
[328421566,1717371098983,-500.0,0.00032501,4]
[328421567,1717371098993,-693.57,0.00032501,4]
[328421568,1717371099002,-500.0,0.00032501,4]
[328421569,1717371099012,-500.0,0.00032501,4]
[328421570,1717371099023,-715.0,0.00032501,4]
[328421571,1717371099033,-698.24,0.00032501,4]
[328421572,1717371099043,-558.89,0.00032501,4]
[328421573,1717371099054,-500.0,0.00032501,4]
[328421574,1717371099063,-727.94,0.00032501,4]
[328421575,1717371099073,-500.0,0.00032501,4]
[328421576,1717371099083,-500.0,0.00032501,4]
[328421577,1717371099092,-500.0,0.00032501,4]
[328421578,1717371099102,-500.0,0.00032501,4]
[328421579,1717371099111,-898.02,0.00032501,4]
[328421580,1717371099121,-899.78,0.00032501,4]
[328421581,1717371099131,-500.0,0.00032501,4]
[328421582,1717371099140,-150.0,0.00032501,4]
[328421583,1717371099150,-500.0,0.00032501,4]
[328421584,1717371099159,-500.0,0.00032501,4]
[328421585,1717371099169,-500.0,0.00032501,4]
[328421586,1717371099179,-500.0,0.00032501,4]
[328421587,1717371099189,-542.64,0.00032501,4]
[328421588,1717371099199,-518.75,0.00032501,4]
[328421589,1717371099209,-1142.42,0.00032501,4]
[328421590,1717371099218,-500.0,0.00032501,4]
[328421591,1717371099228,-566.15,0.00032501,4]
[328421592,1717371099238,-1123.42,0.00032501,4]
[328421593,1717371099248,-1085.2,0.00032501,4]
[328421594,1717371099258,-1205.63,0.00032501,4]
[328421595,1717371099268,-500.0,0.00032501,4]
[328421596,1717371099279,-8789.4,0.00032501,4]
[328421597,1717371099288,-736.38,0.00032501,4]
[328421598,1717371099297,-797.08,0.00032501,4]
[328421599,1717371099307,-26146.55,0.00032501,4]
[328421600,1717371099317,-500.0,0.00032501,4]
[328421601,1717371099327,-553.37,0.00032501,4]
[328421602,1717371099337,-500.0,0.00032501,4]
[328421603,1717371099347,-859.62,0.00032501,4]
[328421604,1717371099357,-500.0,0.00032501,4]
[328421605,1717371099367,-500.0,0.00032501,4]
[328421606,1717371099376,-500.0,0.00032501,4]
[328421607,1717371099386,-500.0,0.00032501,4]
[328421608,1717371099396,-799.72,0.00032501,4]
[328421609,1717371099406,-1125.65,0.00032501,4]
[328421610,1717371099415,-514.95,0.00032501,4]
[328421611,1717371099426,-500.0,0.00032501,4]
[328421612,1717371099436,-7152.07,0.00032501,4]
[328421613,1717371099587,-1737.83,0.00032501,4]
[328421614,1717371099598,-1275.64,0.00032501,4]
[328421615,1717371099607,-500.0,0.00032501,4]
[328421616,1717371099616,-944.32,0.00032501,4]
[328421617,1717371099626,-508.82,0.00032501,4]
[328421618,1717371099635,-1901.92,0.00032501,4]
[328421619,1717371099644,-500.0,0.00032501,4]
[328421620,1717371099654,-500.0,0.00032501,4]
[328421621,1717371099663,-2064.47,0.00032501,4]
[328421622,1717371099672,-500.0,0.00032501,4]
[328421623,1717371099684,-500.0,0.00032501,4]
[328421624,1717371099695,-1245.2,0.00032501,4]
[328421625,1717371099704,-1601.21,0.00032501,4]
[328421626,1717371099713,-620.28,0.00032501,4]
[328421627,1717371099723,-500.0,0.00032501,4]
[328421628,1717371099732,-1827.81,0.00032501,4]
[328421629,1717371099742,-500.0,0.00032501,4]
[328421630,1717371099750,-1608.46,0.00032501,4]
[328421631,1717371099760,-500.0,0.00032501,4]
[328421632,1717371099771,-500.0,0.00032501,4]
[328421633,1717371099780,-592.97,0.00032501,4]
[328421634,1717371099790,-500.0,0.00032501,4]
[328421635,1717371099799,-751.49,0.00032501,4]
[328421636,1717371099808,-500.0,0.00032501,4]
[328421637,1717371099817,-866.13,0.00032501,4]
[328421638,1717371099826,-500.0,0.00032501,4]
[328421639,1717371099836,-500.0,0.00032501,4]
[328421640,1717371099845,-1306.76,0.00032501,4]
[328421641,1717371099855,-500.0,0.00032501,4]
[328421642,1717371099864,-500.0,0.00032501,4]
[328421643,1717371099874,-500.0,0.00032501,4]
[328421644,1717371099883,-500.0,0.00032502,4]
[328421645,1717371099892,-500.0,0.00032502,4]
[328421646,1717371099901,-500.0,0.00032502,4]
[328421647,1717371099911,-527.52212519,0.00032502,4]
[328421648,1717371099920,-500.0,0.00032502,4]
[328421649,1717371099930,-573.17,0.00032502,4]
[328421650,1717371099939,-500.0,0.00032502,4]
[328421651,1717371099948,-500.0,0.00032502,4]
[328421652,1717371099957,-364.3955175,0.00032502,4]
[328421653,1717371099966,-500.0,0.00032502,4]
[328421654,1717371099975,-500.0,0.00032502,4]
[328421655,1717371099984,-500.0,0.00032502,4]
[328421656,1717371099993,-500.0,0.00032502,4]
[328421657,1717371100002,-500.0,0.00032502,4]
[328421658,1717371100011,-500.0,0.00032502,4]
[328421659,1717371100020,-500.0,0.00032502,4]
[328421660,1717371100029,-500.0,0.00032502,4]
[328421661,1717371100038,-524.79020521,0.00032502,4]
[328421662,1717371100047,-189.20909949,0.00032502,4]
[328421663,1717371100056,-599.18,0.00032502,4]
[328421664,1717371100066,-500.0,0.00032502,4]
[328421665,1717371100075,-500.0,0.00032502,4]
[328421666,1717371100084,-500.0,0.00032502,4]
[328421667,1717371100094,-500.0,0.00032502,4]
[328421668,1717371100104,-500.0,0.00032502,4]
[328421669,1717371100113,-582.7,0.00032502,4]
[328421670,1717371100123,-191.07952014,0.00032502,4]
[328421671,1717371100133,-500.0,0.00032502,4]
[328421672,1717371100143,-500.0,0.00032502,4]
[328421673,1717371100152,-500.0,0.00032502,4]
[328421674,1717371100162,-500.0,0.00032502,4]
[328421675,1717371100171,-540.67489243,0.00032502,4]
[328421676,1717371100181,-500.0,0.00032502,4]
[328421677,1717371100190,-700.2,0.00032502,4]
[328421678,1717371100199,-500.0,0.00032502,4]
[328421679,1717371100209,-500.0,0.00032502,4]
[328421680,1717371100218,-500.0,0.00032502,4]
[328421681,1717371100227,-500.0,0.00032502,4]
[328421682,1717371100236,-500.0,0.00032502,4]
[328421683,1717371100245,-500.0,0.00032502,4]
[328421684,1717371100254,-276.80576726,0.00032502,4]
[328421685,1717371100264,-500.0,0.00032502,4]
[328421686,1717371100273,-500.0,0.00032502,4]
[328421687,1717371100282,-615.25,0.00032502,4]
[328421688,1717371100292,-504.71,0.00032502,4]
[328421689,1717371100301,-532.67459692,0.00032502,4]
[328421690,1717371100311,-538.96873717,0.00032502,4]
[328421691,1717371100320,-500.0,0.00032502,4]
[328421692,1717371100330,-500.0,0.00032502,4]
[328421693,1717371100339,-500.0,0.00032502,4]
[328421694,1717371100348,-500.0,0.00032502,4]
[328421695,1717371100357,-500.0,0.00032502,4]
[328421696,1717371100366,-500.0,0.00032502,4]
[328421697,1717371100375,-597.94,0.00032502,4]
[328421698,1717371100385,-500.0,0.00032502,4]
[328421699,1717371100394,-189.01586904,0.00032502,4]
[328421700,1717371100403,-500.0,0.00032502,4]
[328421701,1717371100414,-211.98338603,0.00032502,4]
[328421702,1717371100423,-500.0,0.00032502,4]
[328421703,1717371100433,-500.0,0.00032502,4]
[328421704,1717371100442,-500.0,0.00032502,4]
[328421705,1717371100452,-500.0,0.00032502,4]
[328421706,1717371100461,-500.0,0.00032502,4]
[328421707,1717371100470,-590.01,0.00032502,4]
[328421708,1717371100479,-500.0,0.00032502,4]
[328421709,1717371100488,-592.45,0.00032502,4]
[328421710,1717371100496,-414.06358151,0.00032502,4]
[328421711,1717371100505,-500.0,0.00032502,4]
[328421712,1717371100514,-707.92,0.00032502,4]
[328421713,1717371100523,-500.0,0.00032502,4]